[Event "Betsys MČR v online bleskovém šachu 2021"]
[Site "Chess.com"]
[Date "2021.04.17"]
[Round "6"]
[White "psvoboda72"]
[Black "Klokan64"]
[Result "1-0"]
[WhiteElo "1718"]
[BlackElo "1415"]
[TimeControl "180+1"]
[EndTime "9:57:16 PDT"]
[Termination "Uživatel psvoboda72 zvítězil na čas"]

1. Nf3 {[%clk 0:02:58]} 1... d6 {[%clk 0:02:52.4]} 2. d4 {[%clk 0:02:56.4]} 2...
Nf6 {[%clk 0:02:49.5]} 3. Nc3 {[%clk 0:02:53.7]} 3... c6 {[%clk 0:02:49.3]} 4.
e4 {[%clk 0:02:53.1]} 4... Bg4 {[%clk 0:02:47.5]} 5. h3 {[%clk 0:02:47.7]} 5...
Bh5 {[%clk 0:02:46.7]} 6. g4 {[%clk 0:02:45.9]} 6... Bg6 {[%clk 0:02:46.5]} 7.
Bd3 {[%clk 0:02:43.6]} 7... e6 {[%clk 0:02:43.6]} 8. O-O {[%clk 0:02:42]} 8...
Be7 {[%clk 0:02:42.2]} 9. Bf4 {[%clk 0:02:33]} 9... d5 {[%clk 0:02:39.7]} 10. e5
{[%clk 0:02:27.5]} 10... Nfd7 {[%clk 0:02:39.4]} 11. Bg3 {[%clk 0:02:20.1]}
11... c5 {[%clk 0:02:38.4]} 12. Nb5 {[%clk 0:02:15.5]} 12... Nc6 {[%clk
0:02:29.6]} 13. Nd6+ {[%clk 0:02:12.4]} 13... Bxd6 {[%clk 0:02:26.3]} 14. exd6
{[%clk 0:02:06.5]} 14... cxd4 {[%clk 0:02:17.3]} 15. Bxg6 {[%clk 0:02:02.2]}
15... hxg6 {[%clk 0:02:15.6]} 16. Nxd4 {[%clk 0:01:57.9]} 16... Rxh3 {[%clk
0:02:00]} 17. Kg2 {[%clk 0:01:50.7]} 17... Rh7 {[%clk 0:01:51.8]} 18. Nb5 {[%clk
0:01:48.4]} 18... Rc8 {[%clk 0:01:35.2]} 19. Re1 {[%clk 0:01:47.1]} 19... Qb6
{[%clk 0:01:28]} 20. Qxd5 {[%clk 0:01:39.1]} 20... Kf8 {[%clk 0:01:23.7]} 21.
Qb3 {[%clk 0:01:32.6]} 21... a6 {[%clk 0:01:08.1]} 22. Nc7 {[%clk 0:01:26.8]}
22... Qxb3 {[%clk 0:00:51.3]} 23. axb3 {[%clk 0:01:24]} 23... e5 {[%clk
0:00:40.4]} 24. c4 {[%clk 0:01:22.7]} 24... Nd8 {[%clk 0:00:32.2]} 25. b4 {[%clk
0:01:17.4]} 25... f6 {[%clk 0:00:29.9]} 26. c5 {[%clk 0:01:16.5]} 26... Ne6
{[%clk 0:00:26.5]} 27. Nd5 {[%clk 0:01:13.2]} 27... Nd4 {[%clk 0:00:23.4]} 28.
Ne7 {[%clk 0:01:11]} 28... Re8 {[%clk 0:00:21.7]} 29. Nxg6+ {[%clk 0:01:08.5]}
29... Kf7 {[%clk 0:00:18.9]} 30. Ne7 {[%clk 0:01:07.7]} 30... Ne6 {[%clk
0:00:16.1]} 31. Nd5 {[%clk 0:01:05.7]} 31... g6 {[%clk 0:00:13.2]} 32. Rac1
{[%clk 0:01:01.8]} 32... Nd4 {[%clk 0:00:11.8]} 33. f4 {[%clk 0:00:53.2]} 33...
exf4 {[%clk 0:00:05.2]} 34. Rxe8 {[%clk 0:00:51]} 34... f3+ {[%clk 0:00:04.3]}
35. Kf2 {[%clk 0:00:47.2]} 35... Kxe8 {[%clk 0:00:03.4]} 36. Rc3 {[%clk
0:00:42.3]} 36... Nc6 {[%clk 0:00:02]} 37. Rxf3 {[%clk 0:00:37.9]} 1-0

[Event "Betsys MČR v online bleskovém šachu 2021"]
[Site "Chess.com"]
[Date "2021.04.17"]
[Round "6"]
[White "Sunnika"]
[Black "Mitram64"]
[Result "0-1"]
[WhiteElo "2304"]
[BlackElo "2068"]
[TimeControl "180+1"]
[EndTime "9:57:17 PDT"]
[Termination "Uživatel Mitram64 zvítězil matem"]

1. d4 {[%clk 0:03:00.9]} 1... Nf6 {[%clk 0:02:59]} 2. c4 {[%clk 0:03:01.2]} 2...
c5 {[%clk 0:02:58.3]} 3. d5 {[%clk 0:03:01.1]} 3... e5 {[%clk 0:02:57.8]} 4. Nc3
{[%clk 0:03:00.1]} 4... d6 {[%clk 0:02:57]} 5. e4 {[%clk 0:03:01]} 5... Be7
{[%clk 0:02:56.5]} 6. f4 {[%clk 0:03:00.7]} 6... exf4 {[%clk 0:02:54.4]} 7. Bxf4
{[%clk 0:03:01.6]} 7... O-O {[%clk 0:02:54.3]} 8. Bd3 {[%clk 0:02:59.5]} 8...
Nbd7 {[%clk 0:02:52.4]} 9. Nf3 {[%clk 0:02:56.2]} 9... Ne8 {[%clk 0:02:51.4]}
10. O-O {[%clk 0:02:38.1]} 10... Bf6 {[%clk 0:02:50]} 11. Qd2 {[%clk 0:02:38]}
11... Ne5 {[%clk 0:02:48.7]} 12. Nxe5 {[%clk 0:02:33.4]} 12... Bxe5 {[%clk
0:02:47.8]} 13. Rae1 {[%clk 0:02:03]} 13... Bd7 {[%clk 0:02:43.8]} 14. Bg5
{[%clk 0:01:52.4]} 14... f6 {[%clk 0:02:42.7]} 15. Bh4 {[%clk 0:01:47.1]} 15...
Nc7 {[%clk 0:02:34.8]} 16. Nd1 {[%clk 0:01:38.3]} 16... b5 {[%clk 0:02:32.9]}
17. Ne3 {[%clk 0:01:29.6]} 17... Rb8 {[%clk 0:02:27.4]} 18. Kh1 {[%clk
0:01:20.4]} 18... bxc4 {[%clk 0:02:23.8]} 19. Nxc4 {[%clk 0:01:19.4]} 19... Nb5
{[%clk 0:02:11.9]} 20. Nxe5 {[%clk 0:01:03.9]} 20... dxe5 {[%clk 0:02:10.7]} 21.
Rc1 {[%clk 0:01:03.3]} 21... Rc8 {[%clk 0:02:05.6]} 22. Bf2 {[%clk 0:00:57.3]}
22... Nd4 {[%clk 0:02:04.4]} 23. Rc3 {[%clk 0:00:48.1]} 23... Qb6 {[%clk
0:01:57.5]} 24. Rfc1 {[%clk 0:00:46.1]} 24... Rc7 {[%clk 0:01:40.9]} 25. Bc4
{[%clk 0:00:31.7]} 25... Qd6 {[%clk 0:01:35.5]} 26. a3 {[%clk 0:00:31.1]} 26...
Rb7 {[%clk 0:01:29.1]} 27. Ba2 {[%clk 0:00:28.6]} 27... Rfb8 {[%clk 0:01:24.7]}
28. Rb1 {[%clk 0:00:15.5]} 28... Ba4 {[%clk 0:01:21.1]} 29. h3 {[%clk 0:00:12]}
29... Bb3 {[%clk 0:01:18.2]} 30. Bxb3 {[%clk 0:00:11.5]} 30... Rxb3 {[%clk
0:01:15.3]} 31. Kh2 {[%clk 0:00:07.3]} 31... Qb6 {[%clk 0:01:09]} 32. Rxb3
{[%clk 0:00:05.1]} 32... Qxb3 {[%clk 0:01:08.8]} 33. Be1 {[%clk 0:00:03.3]}
33... h6 {[%clk 0:01:02.7]} 34. Rc1 {[%clk 0:00:03.1]} 34... Qxb2 {[%clk
0:01:00.3]} 35. Qxb2 {[%clk 0:00:02.8]} 35... Rxb2 {[%clk 0:00:59.6]} 36. Rxc5
{[%clk 0:00:03.7]} 36... Nf3+ {[%clk 0:00:59]} 37. Kg3 {[%clk 0:00:02.8]} 37...
Nxe1 {[%clk 0:00:58.6]} 38. d6 {[%clk 0:00:03]} 38... Rd2 {[%clk 0:00:57.3]} 39.
Rc8+ {[%clk 0:00:02.6]} 39... Kf7 {[%clk 0:00:56.9]} 40. Rc7+ {[%clk 0:00:02.5]}
40... Kg6 {[%clk 0:00:54.7]} 41. Rxa7 {[%clk 0:00:03.4]} 41... Rxg2+ {[%clk
0:00:51.3]} 42. Kh4 {[%clk 0:00:02.5]} 42... Nf3# {[%clk 0:00:49.8]} 0-1

[Event "Betsys MČR v online bleskovém šachu 2021"]
[Site "Chess.com"]
[Date "2021.04.17"]
[Round "6"]
[White "kecalk"]
[Black "Lisak007"]
[Result "1-0"]
[WhiteElo "2146"]
[BlackElo "1832"]
[TimeControl "180+1"]
[EndTime "9:57:18 PDT"]
[Termination "Uživatel kecalk zvítězil na čas"]

1. g3 {[%clk 0:03:00.9]} 1... c5 {[%clk 0:02:55.8]} 2. Bg2 {[%clk 0:03:01.8]}
2... Nc6 {[%clk 0:02:56.1]} 3. c4 {[%clk 0:03:00.8]} 3... g6 {[%clk 0:02:56.3]}
4. Nc3 {[%clk 0:03:00.5]} 4... Bg7 {[%clk 0:02:56.6]} 5. e4 {[%clk 0:02:56.7]}
5... d6 {[%clk 0:02:56.8]} 6. d3 {[%clk 0:02:55.5]} 6... e5 {[%clk 0:02:56.7]}
7. Nge2 {[%clk 0:02:51.8]} 7... Nge7 {[%clk 0:02:56.9]} 8. O-O {[%clk 0:02:52]}
8... O-O {[%clk 0:02:57.3]} 9. f4 {[%clk 0:02:48.1]} 9... f5 {[%clk 0:02:54.1]}
10. Be3 {[%clk 0:02:43.4]} 10... exf4 {[%clk 0:02:42.8]} 11. Nxf4 {[%clk
0:02:31.1]} 11... Nd4 {[%clk 0:02:33.8]} 12. Qd2 {[%clk 0:02:24.8]} 12... fxe4
{[%clk 0:02:31.8]} 13. Bxe4 {[%clk 0:02:16.4]} 13... Nef5 {[%clk 0:02:31]} 14.
Bd5+ {[%clk 0:02:11.1]} 14... Kh8 {[%clk 0:02:29.3]} 15. Rae1 {[%clk 0:02:09.5]}
15... Nxe3 {[%clk 0:02:22.6]} 16. Rxe3 {[%clk 0:02:05.2]} 16... Bh3 {[%clk
0:02:04.8]} 17. Rfe1 {[%clk 0:02:02.5]} 17... Qd7 {[%clk 0:01:41.8]} 18. Re7
{[%clk 0:01:51.3]} 18... Qg4 {[%clk 0:01:41.2]} 19. Qd1 {[%clk 0:01:37.5]} 19...
Qg5 {[%clk 0:01:07.6]} 20. Nxh3 {[%clk 0:01:31.9]} 20... Qf5 {[%clk 0:00:49.8]}
21. Nf4 {[%clk 0:01:22.4]} 21... g5 {[%clk 0:00:48.3]} 22. Be4 {[%clk 0:01:08]}
22... Qf6 {[%clk 0:00:40.2]} 23. Ncd5 {[%clk 0:01:07.3]} 23... Qh6 {[%clk
0:00:31.5]} 24. Nh5 {[%clk 0:00:57.4]} 24... Be5 {[%clk 0:00:24.1]} 25. Rxh7+
{[%clk 0:00:54.5]} 25... Qxh7 {[%clk 0:00:24]} 26. Bxh7 {[%clk 0:00:55.4]} 26...
Nf3+ {[%clk 0:00:22.8]} 27. Kg2 {[%clk 0:00:53.8]} 27... Nxe1+ {[%clk
0:00:22.9]} 28. Qxe1 {[%clk 0:00:54.7]} 28... Kxh7 {[%clk 0:00:23]} 29. Qe4+
{[%clk 0:00:35]} 29... Kh6 {[%clk 0:00:20.1]} 30. Ne7 {[%clk 0:00:29.7]} 30...
Rf6 {[%clk 0:00:05.7]} 31. Nxf6 {[%clk 0:00:28.6]} 1-0

[Event "Betsys MČR v online bleskovém šachu 2021"]
[Site "Chess.com"]
[Date "2021.04.17"]
[Round "6"]
[White "Akdub"]
[Black "youhy"]
[Result "1-0"]
[WhiteElo "2094"]
[BlackElo "1777"]
[TimeControl "180+1"]
[EndTime "9:57:18 PDT"]
[Termination "Uživatel Akdub zvítězil na čas"]

1. e4 {[%clk 0:02:12.3]} 1... e6 {[%clk 0:02:59.5]} 2. d4 {[%clk 0:02:11.6]}
2... d5 {[%clk 0:02:58.9]} 3. Nd2 {[%clk 0:02:12.2]} 3... c5 {[%clk 0:02:57.1]}
4. exd5 {[%clk 0:02:11.6]} 4... Qxd5 {[%clk 0:02:57.2]} 5. Ndf3 {[%clk
0:02:12.1]} 5... cxd4 {[%clk 0:02:57]} 6. Nxd4 {[%clk 0:02:11.5]} 6... e5 {[%clk
0:02:49.1]} 7. Nb5 {[%clk 0:02:03.7]} 7... Qxd1+ {[%clk 0:02:45.9]} 8. Kxd1
{[%clk 0:02:04.6]} 8... Na6 {[%clk 0:02:43.4]} 9. Be3 {[%clk 0:01:57.6]} 9... b6
{[%clk 0:02:31.9]} 10. Nf3 {[%clk 0:01:49.8]} 10... f6 {[%clk 0:02:17.8]} 11.
Bc4 {[%clk 0:01:44.7]} 11... Bb7 {[%clk 0:02:10.7]} 12. Ke2 {[%clk 0:01:28.3]}
12... Nh6 {[%clk 0:01:39.5]} 13. Bxh6 {[%clk 0:01:10.6]} 13... gxh6 {[%clk
0:01:37.8]} 14. Rad1 {[%clk 0:01:08.9]} 14... Rc8 {[%clk 0:01:24]} 15. b3 {[%clk
0:01:07.3]} 15... Nb4 {[%clk 0:00:28]} 16. c3 {[%clk 0:00:48]} 16... Nc6 {[%clk
0:00:20.9]} 17. Nd6+ {[%clk 0:00:34.2]} 17... Bxd6 {[%clk 0:00:19.1]} 18. Rxd6
{[%clk 0:00:35.1]} 18... Rf8 {[%clk 0:00:13.1]} 19. Rhd1 {[%clk 0:00:33.6]}
19... Rd8 {[%clk 0:00:08.9]} 20. Re6+ {[%clk 0:00:33.3]} 20... Ne7 {[%clk
0:00:08.5]} 21. Rxd8+ {[%clk 0:00:14.5]} 21... Kxd8 {[%clk 0:00:08.7]} 22. Nd2
{[%clk 0:00:09.9]} 22... Re8 {[%clk 0:00:04.2]} 23. f3 {[%clk 0:00:09.5]} 23...
Kc7 {[%clk 0:00:02.1]} 24. Ne4 {[%clk 0:00:03.6]} 24... Bxe4 {[%clk 0:00:01.2]}
25. fxe4 {[%clk 0:00:04.5]} 1-0

[Event "Betsys MČR v online bleskovém šachu 2021"]
[Site "Chess.com"]
[Date "2021.04.17"]
[Round "6"]
[White "Richarlito"]
[Black "KarelZalesky"]
[Result "1-0"]
[WhiteElo "2025"]
[BlackElo "1587"]
[TimeControl "180+1"]
[EndTime "9:57:18 PDT"]
[Termination "Uživatel Richarlito zvítězil na čas"]

1. e4 {[%clk 0:03:00.9]} 1... c5 {[%clk 0:02:56.1]} 2. c3 {[%clk 0:02:58.7]}
2... d6 {[%clk 0:02:55.1]} 3. d4 {[%clk 0:02:55.3]} 3... cxd4 {[%clk 0:02:55.4]}
4. cxd4 {[%clk 0:02:55.2]} 4... Nf6 {[%clk 0:02:54.9]} 5. Nc3 {[%clk 0:02:55.2]}
5... a6 {[%clk 0:02:54.4]} 6. Nf3 {[%clk 0:02:51]} 6... e6 {[%clk 0:02:50.7]} 7.
Bd3 {[%clk 0:02:49.4]} 7... Be7 {[%clk 0:02:50]} 8. O-O {[%clk 0:02:49.5]} 8...
Nc6 {[%clk 0:02:48.1]} 9. Bg5 {[%clk 0:02:48.6]} 9... h6 {[%clk 0:02:46.5]} 10.
Bh4 {[%clk 0:02:46.1]} 10... g5 {[%clk 0:02:32.6]} 11. Bg3 {[%clk 0:02:33]}
11... g4 {[%clk 0:02:32.7]} 12. Nd2 {[%clk 0:02:29.5]} 12... Nxd4 {[%clk
0:02:32.3]} 13. e5 {[%clk 0:02:27.3]} 13... dxe5 {[%clk 0:02:23.3]} 14. Bxe5
{[%clk 0:02:26.2]} 14... Nc6 {[%clk 0:02:15]} 15. Nc4 {[%clk 0:02:17.5]} 15...
Nxe5 {[%clk 0:01:53.7]} 16. Nxe5 {[%clk 0:02:15.9]} 16... h5 {[%clk 0:01:52.2]}
17. Qc2 {[%clk 0:02:04.5]} 17... Qc7 {[%clk 0:01:41.5]} 18. Rfe1 {[%clk
0:01:59]} 18... b5 {[%clk 0:01:23.4]} 19. Bg6 {[%clk 0:01:45.1]} 19... Bd6
{[%clk 0:00:23.9]} 20. Nxf7 {[%clk 0:01:36.2]} 20... Ke7 {[%clk 0:00:19.9]} 21.
Nxd6 {[%clk 0:01:21.8]} 21... Qxd6 {[%clk 0:00:18.9]} 22. Rad1 {[%clk
0:01:20.5]} 22... Qb6 {[%clk 0:00:15.4]} 23. Qd2 {[%clk 0:01:07.7]} 23... Rd8
{[%clk 0:00:13.6]} 24. Qh6 {[%clk 0:00:56.6]} 24... Rg8 {[%clk 0:00:06.3]} 25.
Qg5 {[%clk 0:00:37.8]} 25... Bb7 {[%clk 0:00:05.5]} 26. Nd5+ {[%clk 0:00:28.5]}
26... Bxd5 {[%clk 0:00:04.9]} 27. Rxd5 {[%clk 0:00:28.3]} 27... Rad8 {[%clk
0:00:04.9]} 28. Rde5 {[%clk 0:00:28.1]} 28... Rd6 {[%clk 0:00:04.6]} 29. Rf5
{[%clk 0:00:22.3]} 29... Rf8 {[%clk 0:00:04.3]} 30. Bxh5 {[%clk 0:00:20.1]}
30... Kd7 {[%clk 0:00:03.8]} 31. Qg7+ {[%clk 0:00:19.6]} 1-0

[Event "Betsys MČR v online bleskovém šachu 2021"]
[Site "Chess.com"]
[Date "2021.04.17"]
[Round "6"]
[White "Lukuluss88"]
[Black "povrlak60"]
[Result "1-0"]
[WhiteElo "2022"]
[BlackElo "1618"]
[TimeControl "180+1"]
[EndTime "9:57:18 PDT"]
[Termination "Uživatel Lukuluss88 zvítězil na čas"]

1. c4 {[%clk 0:03:00.9]} 1... Nf6 {[%clk 0:02:58.3]} 2. Nc3 {[%clk 0:03:00.9]}
2... d6 {[%clk 0:02:57.6]} 3. g3 {[%clk 0:03:00.7]} 3... g6 {[%clk 0:02:57.4]}
4. Bg2 {[%clk 0:03:00.9]} 4... c6 {[%clk 0:02:57.4]} 5. e4 {[%clk 0:03:00.7]}
5... Bg7 {[%clk 0:02:56.7]} 6. d3 {[%clk 0:03:00.8]} 6... O-O {[%clk 0:02:56.3]}
7. Nge2 {[%clk 0:03:00.9]} 7... Bg4 {[%clk 0:02:55.8]} 8. f3 {[%clk 0:02:59.2]}
8... Be6 {[%clk 0:02:51.4]} 9. O-O {[%clk 0:02:58.7]} 9... d5 {[%clk 0:02:49.2]}
10. cxd5 {[%clk 0:02:52.9]} 10... cxd5 {[%clk 0:02:48.3]} 11. e5 {[%clk
0:02:53.3]} 11... Nfd7 {[%clk 0:02:45.4]} 12. d4 {[%clk 0:02:53.2]} 12... Nc6
{[%clk 0:02:38.5]} 13. f4 {[%clk 0:02:52.4]} 13... Bg4 {[%clk 0:02:35.8]} 14. h3
{[%clk 0:02:50.4]} 14... Bxe2 {[%clk 0:02:34.4]} 15. Nxe2 {[%clk 0:02:50.4]}
15... e6 {[%clk 0:02:34.6]} 16. Rb1 {[%clk 0:02:44.5]} 16... Nb6 {[%clk
0:02:33]} 17. b3 {[%clk 0:02:42.4]} 17... Rc8 {[%clk 0:02:32.5]} 18. Ba3 {[%clk
0:02:41.8]} 18... Re8 {[%clk 0:02:30.3]} 19. Bc5 {[%clk 0:02:35.3]} 19... Nd7
{[%clk 0:02:27.8]} 20. Ba3 {[%clk 0:02:28.6]} 20... Bf8 {[%clk 0:02:26.1]} 21.
Bb2 {[%clk 0:02:17.7]} 21... Nb6 {[%clk 0:02:24.4]} 22. Rc1 {[%clk 0:02:13.5]}
22... Nb4 {[%clk 0:02:19]} 23. a3 {[%clk 0:02:11.5]} 23... Rxc1 {[%clk
0:02:16.9]} 24. Qxc1 {[%clk 0:02:11.5]} 24... Nd3 {[%clk 0:02:13.5]} 25. Qc3
{[%clk 0:02:09.2]} 25... Nxb2 {[%clk 0:02:12.9]} 26. Qxb2 {[%clk 0:02:09.3]}
26... Qe7 {[%clk 0:01:58.2]} 27. b4 {[%clk 0:02:02.5]} 27... Rc8 {[%clk
0:01:57]} 28. Rc1 {[%clk 0:02:00.8]} 28... Rxc1+ {[%clk 0:01:45.6]} 29. Qxc1
{[%clk 0:01:59.1]} 29... Nc4 {[%clk 0:01:45.1]} 30. Bf1 {[%clk 0:01:58.3]} 30...
b5 {[%clk 0:01:42]} 31. Nc3 {[%clk 0:01:57.7]} 31... a6 {[%clk 0:01:41.1]} 32.
Bxc4 {[%clk 0:01:55.4]} 32... dxc4 {[%clk 0:01:36]} 33. Qe3 {[%clk 0:01:52.6]}
33... Qb7 {[%clk 0:01:24.7]} 34. Qe4 {[%clk 0:01:52.3]} 34... Qxe4 {[%clk
0:01:17]} 35. Nxe4 {[%clk 0:01:52]} 35... Be7 {[%clk 0:01:11.9]} 36. Kf2 {[%clk
0:01:50.6]} 36... Kf8 {[%clk 0:01:11.4]} 37. Ke3 {[%clk 0:01:44.6]} 37... h6
{[%clk 0:01:10.3]} 38. Nc3 {[%clk 0:01:44.6]} 38... Ke8 {[%clk 0:01:05.7]} 39.
Ke4 {[%clk 0:01:44.5]} 39... Kd7 {[%clk 0:01:05]} 40. d5 {[%clk 0:01:44.7]}
40... Bd8 {[%clk 0:00:55.6]} 41. a4 {[%clk 0:01:33.1]} 41... bxa4 {[%clk
0:00:23.4]} 42. Nxa4 {[%clk 0:01:32.6]} 42... Kc7 {[%clk 0:00:15.6]} 43. Kd4
{[%clk 0:01:28.3]} 43... Kb7 {[%clk 0:00:12.2]} 44. Kxc4 {[%clk 0:01:27.2]}
44... a5 {[%clk 0:00:10.5]} 45. bxa5 {[%clk 0:01:24.9]} 45... Bxa5 {[%clk
0:00:09.8]} 46. dxe6 {[%clk 0:01:25.1]} 46... fxe6 {[%clk 0:00:09.3]} 47. Nc5+
{[%clk 0:01:25.3]} 47... Kc6 {[%clk 0:00:07.9]} 48. Nxe6 {[%clk 0:01:24.3]}
48... Be1 {[%clk 0:00:06.2]} 49. g4 {[%clk 0:01:23.5]} 49... Bg3 {[%clk
0:00:04.9]} 50. Kd4 {[%clk 0:01:21.7]} 50... Kd7 {[%clk 0:00:03.5]} 51. Nf8+
{[%clk 0:01:21.4]} 51... Ke7 {[%clk 0:00:02.6]} 52. Nxg6+ {[%clk 0:01:21.5]}
52... Kf7 {[%clk 0:00:02.7]} 53. f5 {[%clk 0:01:20.6]} 1-0

[Event "Betsys MČR v online bleskovém šachu 2021"]
[Site "Chess.com"]
[Date "2021.04.17"]
[Round "6"]
[White "Emicka1330"]
[Black "Zelezny1984"]
[Result "0-1"]
[WhiteElo "1640"]
[BlackElo "2050"]
[TimeControl "180+1"]
[EndTime "9:57:18 PDT"]
[Termination "Uživatel Zelezny1984 zvítězil po vzdání soupeře"]

1. e4 {[%clk 0:02:59.1]} 1... c5 {[%clk 0:02:59.4]} 2. Nc3 {[%clk 0:02:58.9]}
2... Nc6 {[%clk 0:02:59]} 3. g3 {[%clk 0:02:58.5]} 3... g6 {[%clk 0:02:59.2]} 4.
Bg2 {[%clk 0:02:58.7]} 4... Bg7 {[%clk 0:02:59.8]} 5. d3 {[%clk 0:02:58.9]} 5...
Rb8 {[%clk 0:02:59.5]} 6. Be3 {[%clk 0:02:57.8]} 6... b5 {[%clk 0:03:00.1]} 7.
Bxc5 {[%clk 0:02:55.2]} 7... b4 {[%clk 0:02:59.9]} 8. Nce2 {[%clk 0:02:32.6]}
8... Qa5 {[%clk 0:02:57.5]} 9. Be3 {[%clk 0:02:27.9]} 9... Bxb2 {[%clk
0:02:40.5]} 10. Rb1 {[%clk 0:02:25.9]} 10... Qxa2 {[%clk 0:02:36.3]} 11. Nf3
{[%clk 0:02:19.2]} 11... Bg7 {[%clk 0:02:23.4]} 12. O-O {[%clk 0:02:17.9]} 12...
Qa6 {[%clk 0:02:19.6]} 13. Qd2 {[%clk 0:02:13.4]} 13... e6 {[%clk 0:02:11]} 14.
c3 {[%clk 0:01:58.8]} 14... b3 {[%clk 0:01:47.1]} 15. Ned4 {[%clk 0:01:39.3]}
15... Qa2 {[%clk 0:01:26.4]} 16. Nxc6 {[%clk 0:01:22.9]} 16... Qxd2 {[%clk
0:01:25.7]} 17. Bxd2 {[%clk 0:01:14.6]} 17... dxc6 {[%clk 0:01:26.2]} 18. d4
{[%clk 0:01:09.1]} 18... Ba6 {[%clk 0:01:15]} 19. Rfe1 {[%clk 0:01:05.4]} 19...
Bd3 {[%clk 0:01:15.3]} 20. Ra1 {[%clk 0:01:02.3]} 20... b2 {[%clk 0:01:12.3]}
21. Rab1 {[%clk 0:00:56.1]} 21... Ne7 {[%clk 0:01:06]} 22. Bf1 {[%clk
0:00:46.6]} 22... Bxb1 {[%clk 0:01:05.4]} 23. Rxb1 {[%clk 0:00:46.3]} 23... O-O
{[%clk 0:01:04.4]} 24. c4 {[%clk 0:00:44.2]} 24... Rfd8 {[%clk 0:00:55.8]} 25.
Bc3 {[%clk 0:00:43.2]} 25... c5 {[%clk 0:00:56.4]} 26. Rxb2 {[%clk 0:00:38.7]}
26... Rxb2 {[%clk 0:00:52.2]} 27. Bxb2 {[%clk 0:00:38.3]} 27... cxd4 {[%clk
0:00:53.1]} 28. Bxd4 {[%clk 0:00:35.8]} 28... Bxd4 {[%clk 0:00:52]} 29. Be2
{[%clk 0:00:24]} 29... Bc5 {[%clk 0:00:46.9]} 30. Kg2 {[%clk 0:00:23.6]} 30...
a5 {[%clk 0:00:45.9]} 31. Ne5 {[%clk 0:00:23]} 31... a4 {[%clk 0:00:42.5]} 32.
Nd3 {[%clk 0:00:22.5]} 32... Bd6 {[%clk 0:00:39.9]} 33. c5 {[%clk 0:00:21.1]}
33... Bc7 {[%clk 0:00:36.1]} 34. Nb4 {[%clk 0:00:20.1]} 34... a3 {[%clk
0:00:31.8]} 35. Kf3 {[%clk 0:00:19.3]} 35... Ra8 {[%clk 0:00:30]} 36. Na2 {[%clk
0:00:18.9]} 36... Nc6 {[%clk 0:00:28.1]} 37. Bb5 {[%clk 0:00:17.3]} 37... Nd4+
{[%clk 0:00:27.3]} 0-1

[Event "Betsys MČR v online bleskovém šachu 2021"]
[Site "Chess.com"]
[Date "2021.04.17"]
[Round "6"]
[White "JonasFadrny"]
[Black "VOJTASEK2009"]
[Result "0-1"]
[WhiteElo "756"]
[BlackElo "1281"]
[TimeControl "180+1"]
[EndTime "9:57:19 PDT"]
[Termination "Uživatel VOJTASEK2009 zvítězil matem"]

1. e4 {[%clk 0:02:02.7]} 1... e5 {[%clk 0:02:56.8]} 2. Nf3 {[%clk 0:02:01.1]}
2... Nc6 {[%clk 0:02:55.5]} 3. Nc3 {[%clk 0:02:01.6]} 3... Bb4 {[%clk 0:02:53]}
4. Bc4 {[%clk 0:02:02.2]} 4... d6 {[%clk 0:02:51.7]} 5. d3 {[%clk 0:02:01.3]}
5... h6 {[%clk 0:02:51.2]} 6. a3 {[%clk 0:02:01.7]} 6... Bc5 {[%clk 0:02:41.2]}
7. b4 {[%clk 0:02:01.1]} 7... Nxb4 {[%clk 0:02:32.8]} 8. axb4 {[%clk 0:01:59.2]}
8... Bxb4 {[%clk 0:02:29.7]} 9. Qd2 {[%clk 0:01:58.8]} 9... Nf6 {[%clk
0:02:21.8]} 10. Ba3 {[%clk 0:01:56]} 10... Bxa3 {[%clk 0:02:17.1]} 11. Rxa3
{[%clk 0:01:55.2]} 11... Be6 {[%clk 0:02:16.6]} 12. Bxe6 {[%clk 0:01:52.6]}
12... fxe6 {[%clk 0:02:16.1]} 13. Rb3 {[%clk 0:01:50.6]} 13... b6 {[%clk
0:02:13.9]} 14. O-O {[%clk 0:01:41.8]} 14... O-O {[%clk 0:02:11.3]} 15. Nh4
{[%clk 0:01:36.4]} 15... Ng4 {[%clk 0:01:55.7]} 16. Ng6 {[%clk 0:01:33.1]} 16...
Rf7 {[%clk 0:01:41.3]} 17. h3 {[%clk 0:01:30.5]} 17... Nf6 {[%clk 0:01:35.1]}
18. Ne2 {[%clk 0:01:27.3]} 18... Kh7 {[%clk 0:01:29.3]} 19. Nh4 {[%clk
0:01:23.4]} 19... Nh5 {[%clk 0:01:20.7]} 20. Ng3 {[%clk 0:01:21.5]} 20... Qxh4
{[%clk 0:01:13]} 21. Rbb1 {[%clk 0:01:04.4]} 21... Nxg3 {[%clk 0:01:09.6]} 22.
fxg3 {[%clk 0:01:03.8]} 22... Rxf1+ {[%clk 0:01:02.9]} 23. Kxf1 {[%clk
0:01:02.9]} 23... Rf8+ {[%clk 0:00:56.9]} 24. Kg1 {[%clk 0:01:02.3]} 24... Qxg3
{[%clk 0:00:53.8]} 25. Rf1 {[%clk 0:00:58.5]} 25... Rxf1+ {[%clk 0:00:34.9]} 26.
Kxf1 {[%clk 0:00:57.5]} 26... Qf4+ {[%clk 0:00:34.5]} 27. Qxf4 {[%clk
0:00:56.7]} 27... exf4 {[%clk 0:00:34.7]} 28. Kf2 {[%clk 0:00:54.9]} 28... e5
{[%clk 0:00:34.4]} 29. g3 {[%clk 0:00:53.6]} 29... fxg3+ {[%clk 0:00:33.7]} 30.
Kxg3 {[%clk 0:00:53.4]} 30... Kg6 {[%clk 0:00:34.1]} 31. Kf2 {[%clk 0:00:52.1]}
31... Kg5 {[%clk 0:00:33.6]} 32. Ke1 {[%clk 0:00:51.3]} 32... Kh4 {[%clk
0:00:31.3]} 33. Kd2 {[%clk 0:00:50.2]} 33... Kxh3 {[%clk 0:00:31.5]} 34. Kc3
{[%clk 0:00:49.7]} 34... g5 {[%clk 0:00:28.4]} 35. Kb4 {[%clk 0:00:49.8]} 35...
c6 {[%clk 0:00:23.5]} 36. Kc3 {[%clk 0:00:41.7]} 36... g4 {[%clk 0:00:23.8]} 37.
Kd2 {[%clk 0:00:41]} 37... g3 {[%clk 0:00:24.2]} 38. Kc3 {[%clk 0:00:35.8]}
38... g2 {[%clk 0:00:24.3]} 39. Kc4 {[%clk 0:00:32.5]} 39... g1=Q {[%clk
0:00:23.4]} 40. c3 {[%clk 0:00:30.9]} 40... Qb1 {[%clk 0:00:19.6]} 41. d4 {[%clk
0:00:23.2]} 41... b5# {[%clk 0:00:19.8]} 0-1